fUST/lending_fUST_20250928
["ID","MTS","AMOUNT","RATE_DAILY","PERIOD"]
[388049207,1758991858300,-1787.23,0.00035616,9]
[388049208,1758991858309,-1787.23,0.00035616,9]
[388049209,1758991858318,-1787.23,0.00035616,9]
[388049210,1758991858329,-1787.23,0.00035616,9]
[388049211,1758991858337,-1787.23,0.00035616,9]
[388049212,1758991858347,-1787.23,0.00035616,9]
[388049213,1758991858357,-1787.23,0.00035616,9]
[388049214,1758991858367,-1787.23,0.00035616,9]
[388049215,1758991858376,-958.46,0.00035616,9]
[388049216,1758991858386,-480.0,0.00035616,9]
[388049217,1758991858395,-1787.23,0.00035616,9]
[388049218,1758991858404,-1787.23,0.00035616,9]
[388049219,1758991858414,-271.41491125,0.00035616,9]
[388049220,1758991858423,-1787.23,0.00035616,9]
[388049221,1758991858433,-1787.23,0.00035616,9]
[388049222,1758991858442,-1787.23,0.00035616,9]
[388049223,1758991858452,-1787.23,0.00035616,9]
[388049224,1758991858461,-1787.23,0.00035616,9]
[388049225,1758991858471,-1787.23,0.00035616,9]
[388049226,1758991858480,-480.0,0.00035616,9]
[388049227,1758991858489,-1787.23,0.00035616,9]
[388049228,1758991858499,-1787.23,0.00035616,9]
[388049229,1758991858507,-1787.44161853,0.00035616,9]
[388049230,1758991858516,-817.13,0.00035616,9]
[388049231,1758991858525,-500.0,0.00035616,9]
[388049232,1758991858537,-500.0,0.00035616,9]
[388049233,1758991858546,-500.0,0.00035616,9]
[388049234,1758991858555,-322.38826387,0.00035616,9]
[388049235,1758991858565,-480.0,0.00035616,9]
[388049236,1758991858578,-480.0,0.00035616,9]
[388049237,1758991858587,-480.0,0.00035616,9]
[388049238,1758991858597,-480.0,0.00035616,9]
[388049239,1758991858605,-480.0,0.00035616,9]
[388049240,1758991858615,-480.0,0.00035616,9]
[388049241,1758991858624,-942.86,0.00035616,9]
[388049242,1758991858633,-483.19351218,0.00035616,9]
[388049243,1758991858642,-480.0,0.00035616,9]
[388049244,1758991858651,-480.0,0.00035616,9]
[388049245,1758991858660,-854.67,0.00035616,9]
[388049246,1758991858670,-480.0,0.00035616,9]
[388049247,1758991858679,-499.06,0.00035616,9]
[388049248,1758991858688,-1708.29,0.00035616,9]
[388049249,1758991858697,-480.0,0.00035616,9]
[388049250,1758991858706,-480.0,0.00035616,9]
[388049251,1758991858715,-480.0,0.00035616,9]
[388049252,1758991858724,-480.0,0.00035616,9]
[388049253,1758991858733,-480.0,0.00035616,9]
[388049254,1758991858742,-480.0,0.00035616,9]
[388049255,1758991858751,-480.0,0.00035616,9]
[388049256,1758991858760,-480.0,0.00035616,9]
[388049257,1758991858769,-942.12,0.00035616,9]
[388049258,1758991858778,-480.0,0.00035616,9]
[388049259,1758991858787,-480.0,0.00035616,9]
[388049260,1758991858797,-480.0,0.00035616,9]
[388049261,1758991858806,-1372.36,0.00035616,9]
[388049262,1758991858815,-691.31,0.00035616,9]
[388049263,1758991858825,-480.0,0.00035616,9]
[388049264,1758991858834,-2753.46,0.00035616,9]
[388049265,1758991858845,-480.0,0.00035616,9]
[388049266,1758991858854,-2403.49,0.00035616,9]
[388049267,1758991858863,-500.0,0.00035616,2]
[388049268,1758991858872,-500.0,0.00035616,2]
[388049269,1758991858882,-514.20174533,0.00035616,2]
[388049270,1758991858891,-388.02461502,0.00035616,9]
[388049271,1758991858901,-480.0,0.00035616,9]
[388049272,1758991858910,-480.0,0.00035616,9]
[388049273,1758991858919,-481.11371741,0.00035616,9]
[388049274,1758991858928,-480.0,0.00035616,9]
[388049275,1758991858937,-480.0,0.00035616,9]
[388049276,1758991858947,-917.5,0.00035616,9]
[388049277,1758991858956,-480.0,0.00035616,9]
[388049278,1758991858966,-480.0,0.00035616,9]
[388049279,1758991858975,-480.0,0.00035616,9]
[388049280,1758991858984,-480.0,0.00035616,9]
[388049281,1758991858994,-480.0,0.00035616,9]
[388049282,1758991859003,-480.0,0.00035616,9]
[388049283,1758991859014,-480.66997004,0.00035616,9]
[388049284,1758991859023,-2279.39273473,0.00035616,120]
[388049285,1758991859032,-619.66,0.00035616,9]
[388049286,1758991859042,-480.0,0.00035616,9]
[388049287,1758991859052,-480.0,0.00035616,9]
[388049288,1758991859061,-480.0,0.00035616,9]
[388049289,1758991859070,-480.0,0.00035616,9]
[388049290,1758991859079,-807.37,0.00035616,9]
[388049291,1758991859089,-480.0,0.00035616,9]
[388049292,1758991859098,-5666.1,0.00035616,9]
[388049293,1758991859107,-480.0,0.00035616,9]
[388049294,1758991859116,-480.0,0.00035616,9]
[388049295,1758991859126,-480.0,0.00035616,9]
[388049296,1758991859135,-480.0,0.00035616,9]
[388049297,1758991859145,-480.0,0.00035616,9]
[388049298,1758991859155,-480.0,0.00035616,9]
[388049299,1758991859166,-480.0,0.00035616,9]
[388049300,1758991859177,-480.0,0.00035616,9]
[388049301,1758991859187,-480.0,0.00035616,9]
[388049302,1758991859196,-480.0,0.00035616,9]
[388049303,1758991859206,-480.0,0.00035616,9]
[388049304,1758991859215,-480.0,0.00035616,9]
[388049305,1758991859225,-1403.05,0.00035616,9]
[388049306,1758991859235,-480.0,0.00035616,9]
[388049307,1758991859376,-480.0,0.00035616,9]
[388049308,1758991859386,-567.61,0.00035616,9]
[388049309,1758991859396,-480.0,0.00035616,9]
[388049310,1758991859405,-480.0,0.00035616,9]
[388049311,1758991859415,-598.33,0.00035616,9]
[388049312,1758991859423,-480.0,0.00035616,9]
[388049313,1758991859433,-480.0,0.00035616,9]
[388049314,1758991859442,-480.0,0.00035616,9]
[388049315,1758991859451,-480.0,0.00035616,9]
[388049316,1758991859460,-480.0,0.00035616,9]
[388049317,1758991859469,-480.0,0.00035616,9]
[388049318,1758991859478,-480.0,0.00035616,9]
[388049319,1758991859489,-480.0,0.00035616,9]
[388049320,1758991859498,-3533.19,0.00035616,9]
[388049321,1758991859507,-482.03993174,0.00035616,9]
[388049322,1758991859516,-480.0,0.00035616,9]
[388049323,1758991859525,-640.15,0.00035616,9]
[388049324,1758991859535,-480.0,0.00035616,9]
[388049325,1758991859544,-462.61689005,0.00035616,9]
[388049326,1758991859553,-480.0,0.00035616,9]
[388049327,1758991859563,-480.0,0.00035616,9]
[388049328,1758991859576,-2730.15,0.00035616,9]
[388049329,1758991859585,-480.0,0.00035616,9]
[388049330,1758991859594,-919.41,0.00035616,9]
[388049331,1758991859603,-480.0,0.00035616,9]
[388049332,1758991859612,-480.0,0.00035616,9]
[388049333,1758991859621,-480.0,0.00035616,9]
[388049334,1758991859630,-480.0,0.00035616,9]
[388049335,1758991859639,-480.0,0.00035616,9]
[388049336,1758991859649,-2136.36,0.00035616,9]
[388049337,1758991859660,-480.0,0.00035616,9]
[388049338,1758991859669,-1630.88,0.00035616,9]
[388049339,1758991859677,-480.0,0.00035616,9]
[388049340,1758991859686,-1685.61,0.00035616,9]
[388049341,1758991859695,-480.0,0.00035616,9]
[388049342,1758991859703,-1122.1,0.00035616,9]
[388049343,1758991859712,-480.0,0.00035616,9]
[388049344,1758991859720,-480.0,0.00035616,9]
[388049345,1758991859729,-480.0,0.00035616,9]
[388049346,1758991859737,-548.22,0.00035616,9]
[388049347,1758991859745,-480.0,0.00035616,9]
[388049348,1758991859753,-1371.69,0.00035616,9]
[388049349,1758991859761,-480.0,0.00035616,9]
[388049350,1758991859770,-480.0,0.00035616,9]
[388049351,1758991859778,-480.0,0.00035616,9]
[388049352,1758991859787,-704.27,0.00035616,9]
[388049353,1758991859796,-480.0,0.00035616,9]
[388049354,1758991859804,-933.82,0.00035616,9]
[388049355,1758991859812,-480.0,0.00035616,9]
[388049356,1758991859820,-480.0,0.00035616,9]
[388049357,1758991859828,-1692.47,0.00035616,9]
[388049358,1758991859836,-3255.34,0.00035616,9]
[388049359,1758991859845,-904.56,0.00035616,9]
[388049360,1758991859854,-480.0,0.00035616,9]
[388049361,1758991859863,-495.38,0.00035616,9]
[388049362,1758991859873,-480.0,0.00035616,9]
[388049363,1758991859883,-616.92,0.00035616,9]
[388049364,1758991859892,-480.0,0.00035616,9]
[388049365,1758991859901,-480.0,0.00035616,9]
[388049366,1758991859910,-480.0,0.00035616,9]
[388049367,1758991859919,-480.0,0.00035616,9]
[388049368,1758991859928,-480.0,0.00035616,9]
[388049369,1758991859937,-1112.33,0.00035616,9]
[388049370,1758991859946,-480.0,0.00035616,9]
[388049371,1758991859955,-480.0,0.00035616,9]
[388049372,1758991859964,-480.0,0.00035616,9]
[388049373,1758991859973,-480.0,0.00035616,9]
[388049374,1758991859981,-591.61,0.00035616,9]
[388049375,1758991859991,-1383.8,0.00035616,9]
[388049376,1758991860000,-413.11303403,0.00035616,9]
[388049377,1758991860009,-480.0,0.00035616,9]
[388049378,1758991860018,-480.0,0.00035616,9]
[388049379,1758991860028,-984.86,0.00035616,9]
[388049380,1758991860038,-611.37,0.00035616,9]
[388049381,1758991860047,-480.0,0.00035616,9]
[388049382,1758991860058,-500.0,0.00035616,9]
[388049383,1758991860067,-480.0,0.00035616,9]
[388049384,1758991860076,-480.0,0.00035616,9]
[388049385,1758991860086,-480.0,0.00035616,9]
[388049386,1758991860096,-480.0,0.00035616,9]
[388049387,1758991860105,-480.0,0.00035616,9]
[388049388,1758991860115,-1719.94,0.00035616,9]
[388049389,1758991860123,-621.2,0.00035616,9]
[388049390,1758991860132,-660.9,0.00035616,9]
[388049391,1758991860141,-480.0,0.00035616,9]
[388049392,1758991860149,-480.0,0.00035616,9]
[388049393,1758991860158,-480.0,0.00035616,9]
[388049394,1758991860168,-531.81,0.00035616,9]
[388049395,1758991860178,-480.0,0.00035616,9]
[388049396,1758991860188,-480.0,0.00035616,9]
[388049397,1758991860198,-480.0,0.00035616,9]
[388049398,1758991860207,-480.0,0.00035616,9]
[388049399,1758991860216,-480.0,0.00035616,9]
[388049400,1758991860226,-689.21,0.00035616,9]
[388049401,1758991860236,-1409.83,0.00035616,9]
[388049402,1758991860246,-671.08,0.00035616,9]
[388049403,1758991860256,-480.0,0.00035616,9]
[388049404,1758991860266,-480.0,0.00035616,9]
[388049405,1758991860275,-502.47,0.00035616,9]
[388049406,1758991860285,-480.0,0.00035616,9]
[388049407,1758991860293,-621.33,0.00035616,9]
[388049408,1758991860302,-480.0,0.00035616,9]
[388049409,1758991860313,-480.0,0.00035616,9]
[388049410,1758991860322,-531.98,0.00035616,9]
[388049411,1758991860332,-480.0,0.00035616,9]
[388049412,1758991860341,-480.0,0.00035616,9]
[388049413,1758991860351,-480.0,0.00035616,9]
[388049414,1758991860360,-500.0,0.00035616,30]
[388049415,1758991860368,-647.8,0.00035616,9]
[388049416,1758991860378,-1000.0,0.00035616,9]
[388049417,1758991860385,-703.1,0.00035616,9]
[388049418,1758991860393,-480.0,0.00035616,9]
[388049419,1758991860402,-480.0,0.00035616,9]
[388049420,1758991860411,-480.0,0.00035616,9]
[388049421,1758991860421,-555.29115786,0.00035616,9]
[388049422,1758991860429,-461.23410469,0.00035616,9]
[388049423,1758991860437,-480.0,0.00035616,9]
[388049424,1758991860446,-480.0,0.00035616,9]
[388049425,1758991860454,-1280.47,0.00035616,9]
[388049426,1758991860463,-1144.79,0.00035616,9]
[388049427,1758991860471,-480.0,0.00035616,9]
[388049428,1758991860480,-480.0,0.00035616,9]
[388049429,1758991860488,-1847.01,0.00035616,9]
[388049430,1758991860497,-1199.76,0.00035616,9]
[388049431,1758991860505,-7268.33,0.00035616,9]
[388049432,1758991860513,-480.0,0.00035616,9]
[388049433,1758991860523,-480.0,0.00035616,9]
[388049434,1758991860532,-480.0,0.00035616,9]
[388049435,1758991860541,-2447.77,0.00035616,9]
[388049436,1758991860550,-480.0,0.00035616,9]
[388049437,1758991860559,-480.0,0.00035616,9]
[388049438,1758991860571,-480.0,0.00035616,9]
[388049439,1758991860580,-542.79824397,0.00035616,9]
[388049440,1758991860590,-480.0,0.00035616,7]
[388049441,1758991860599,-480.0,0.00035616,9]
[388049442,1758991860608,-480.34737234,0.00035616,9]
[388049443,1758991860618,-354.08620133,0.00035616,9]
[388049444,1758991860627,-480.0,0.00035616,9]
[388049445,1758991860636,-480.0,0.00035616,9]
[388049446,1758991860645,-480.0,0.00035616,9]
[388049447,1758991860654,-480.0,0.00035616,9]
[388049448,1758991860663,-480.0,0.00035616,9]
[388049449,1758991860672,-2747.76,0.00035616,9]
[388049450,1758991860682,-2747.76,0.00035616,9]
[388049451,1758991860691,-2747.76,0.00035616,9]
[388049452,1758991860700,-480.0,0.00035616,9]
[388049453,1758991860709,-1439.8,0.00035616,9]
[388049454,1758991860718,-2747.76,0.00035616,9]
[388049455,1758991860727,-480.0,0.00035616,9]
[388049456,1758991860737,-2747.76,0.00035616,9]
[388049457,1758991860746,-2747.76,0.00035616,9]
[388049458,1758991860755,-2747.76,0.00035616,9]
[388049459,1758991860764,-2747.76,0.00035616,9]
[388049460,1758991860774,-2747.76,0.00035616,9]
[388049461,1758991860783,-2747.76,0.00035616,9]
[388049462,1758991860793,-2747.76,0.00035616,9]
[388049463,1758991860803,-480.0,0.00035616,9]
[388049464,1758991860812,-2747.76,0.00035616,9]
[388049465,1758991860822,-2747.76,0.00035616,9]
[388049466,1758991860832,-895.15,0.00035616,9]
[388049467,1758991860842,-2747.76,0.00035616,9]
[388049468,1758991860851,-2747.76,0.00035616,9]
[388049469,1758991860860,-2747.76,0.00035616,9]
[388049470,1758991860869,-2747.76,0.00035616,9]
[388049471,1758991860879,-480.0,0.00035616,9]
[388049472,1758991860888,-2747.76,0.00035616,9]
[388049473,1758991860898,-2747.76,0.00035616,9]
[388049474,1758991860908,-2747.76,0.00035616,9]
[388049475,1758991860917,-2747.76,0.00035616,9]
[388049476,1758991860927,-480.0,0.00035616,9]
[388049477,1758991860937,-2747.76,0.00035616,9]
[388049478,1758991860946,-2747.76,0.00035616,9]
[388049479,1758991860956,-2747.97932574,0.00035616,9]
[388049480,1758991860966,-480.0,0.00035616,9]
[388049481,1758991860975,-480.0,0.00035616,9]
[388049482,1758991860984,-1627.54,0.00035616,9]
[388049483,1758991860994,-480.0,0.00035616,2]
[388049484,1758991861004,-530.6505539,0.00035616,9]
[388049485,1758991861013,-482.42097777,0.00035616,9]
[388049486,1758991861023,-480.0,0.00035616,9]
[388049487,1758991861033,-480.0,0.00035616,9]
[388049488,1758991861044,-480.0,0.00035616,9]
[388049489,1758991861053,-484.47395881,0.00035616,9]
[388049490,1758991861063,-480.0,0.00035616,9]
[388049491,1758991861073,-480.0,0.00035616,9]
[388049492,1758991861082,-480.0,0.00035616,9]
[388049493,1758991861091,-480.0,0.00035616,9]
[388049494,1758991861100,-480.0,0.00035616,9]
[388049495,1758991861110,-480.0,0.00035616,9]
[388049496,1758991861120,-480.0,0.00035616,9]
[388049497,1758991861129,-480.0,0.00035616,9]
[388049498,1758991861138,-480.0,0.00035616,9]
[388049499,1758991861148,-480.0,0.00035616,9]
[388049500,1758991861157,-941.45,0.00035616,9]
[388049501,1758991861166,-500.0,0.00035616,9]
[388049502,1758991861176,-500.0,0.00035616,9]
[388049503,1758991861185,-500.0,0.00035616,9]
[388049504,1758991861195,-500.0,0.00035616,9]
[388049505,1758991861204,-605.01,0.00035616,9]
[388049506,1758991861213,-618.60433297,0.00035616,9]
[388049507,1758991861224,-480.0,0.00035616,9]
[388049508,1758991861234,-2127.68,0.00035616,9]
[388049509,1758991861243,-480.0,0.00035616,9]
[388049510,1758991861252,-480.0,0.00035616,9]
[388049511,1758991861262,-480.0,0.00035616,9]
[388049512,1758991861271,-723.86,0.00035616,9]
[388049513,1758991861280,-480.0,0.00035616,9]
[388049514,1758991861290,-480.0,0.00035616,9]
[388049515,1758991861299,-684.13,0.00035616,9]
[388049516,1758991861308,-480.0,0.00035616,9]
[388049517,1758991861317,-480.0,0.00035616,9]
[388049518,1758991861327,-480.0,0.00035616,9]
[388049519,1758991861336,-604.31,0.00035616,9]
[388049520,1758991861346,-480.0,0.00035616,9]
[388049521,1758991861355,-625.70367343,0.00035616,9]
[388049522,1758991861365,-480.0,0.00035616,9]
[388049523,1758991861375,-480.0,0.00035616,9]
[388049524,1758991861385,-480.0,0.00035616,9]
[388049525,1758991861394,-2493.42,0.00035616,9]
[388049526,1758991861403,-480.0,0.00035616,9]
[388049527,1758991861412,-480.0,0.00035616,9]
[388049528,1758991861422,-962.39,0.00035616,9]
[388049529,1758991861553,-480.0,0.00035616,9]
[388049530,1758991861563,-480.0,0.00035616,9]
[388049531,1758991861572,-480.0,0.00035616,9]
[388049532,1758991861581,-481.82599882,0.00035616,9]
[388049533,1758991861591,-1796.11,0.00035616,9]
[388049534,1758991861600,-480.0,0.00035616,9]
[388049535,1758991861609,-480.0,0.00035616,9]
[388049536,1758991861618,-480.0,0.00035616,9]
[388049537,1758991861627,-480.0,0.00035616,9]
[388049538,1758991861636,-480.0,0.00035616,9]
[388049539,1758991861645,-480.0,0.00035616,9]
[388049540,1758991861654,-480.0,0.00035616,9]
[388049541,1758991861663,-480.0,0.00035616,9]
[388049542,1758991861673,-2447.11,0.00035616,9]
[388049543,1758991861683,-620.25,0.00035616,9]
[388049544,1758991861692,-480.0,0.00035616,9]
[388049545,1758991861701,-480.0,0.00035616,9]
[388049546,1758991861711,-480.0,0.00035616,9]
[388049547,1758991861720,-1595.5,0.00035616,9]
[388049548,1758991861729,-480.0,0.00035616,9]
[388049549,1758991861739,-635.31,0.00035616,9]
[388049550,1758991861748,-481.01392555,0.00035616,9]
[388049551,1758991861757,-480.0,0.00035616,9]
[388049552,1758991861767,-895.36,0.00035616,9]
[388049553,1758991861775,-999.0,0.00035616,120]
[388049554,1758991861785,-480.0,0.00035616,9]
[388049555,1758991861795,-480.0,0.00035616,9]
[388049556,1758991861804,-461.40353451,0.00035616,9]
[388049557,1758991861813,-480.0,0.00035616,9]
[388049558,1758991861823,-1839.42,0.00035616,9]
[388049559,1758991861832,-1323.57,0.00035616,9]
[388049560,1758991861840,-480.0,0.00035616,9]
[388049561,1758991861849,-480.0,0.00035616,9]
[388049562,1758991861858,-480.0,0.00035616,9]
[388049563,1758991861867,-480.0,0.00035616,9]
[388049564,1758991861876,-480.0,0.00035616,9]
[388049565,1758991861885,-480.0,0.00035616,9]
[388049566,1758991861894,-480.0,0.00035616,9]
[388049567,1758991861905,-480.0,0.00035616,9]
[388049568,1758991861915,-1145.06,0.00035616,9]
[388049569,1758991861924,-480.0,0.00035616,9]
[388049570,1758991861934,-1413.08,0.00035616,9]
[388049571,1758991861943,-516.16611128,0.00035616,9]
[388049572,1758991861953,-509.77,0.00035616,9]
[388049573,1758991861963,-1729.23,0.00035616,9]
[388049574,1758991861972,-1474.32,0.00035616,9]
[388049575,1758991861982,-480.0,0.00035616,9]
[388049576,1758991861991,-480.0,0.00035616,9]
[388049577,1758991862001,-480.0,0.00035616,9]
[388049578,1758991862011,-661.41,0.00035616,9]
[388049579,1758991862020,-482.44447447,0.00035616,9]
[388049580,1758991862030,-602.63797125,0.00035616,9]
[388049581,1758991862040,-1577.79,0.00035616,9]
[388049582,1758991862050,-480.0,0.00035616,9]
[388049583,1758991862059,-480.0,0.00035616,9]
[388049584,1758991862069,-888.85,0.00035616,9]
[388049585,1758991862078,-480.0,0.00035616,9]
[388049586,1758991862087,-563.71,0.00035616,9]
[388049587,1758991862098,-3928.83,0.00035616,9]
[388049588,1758991862107,-480.0,0.00035616,9]
[388049589,1758991862116,-480.0,0.00035616,9]
[388049590,1758991862126,-12789.04,0.00035616,9]
[388049591,1758991862135,-481.13380587,0.00035616,9]
[388049592,1758991862144,-480.0,0.00035616,9]
[388049593,1758991862153,-480.0,0.00035616,7]
[388049594,1758991862163,-1701.99,0.00035616,9]
[388049595,1758991862171,-480.0,0.00035616,9]
[388049596,1758991862181,-591.58,0.00035616,9]
[388049597,1758991862190,-1669.16,0.00035616,9]
[388049598,1758991862206,-480.0,0.00035616,9]
[388049599,1758991862216,-480.0,0.00035616,9]
[388049600,1758991862226,-2571.08,0.00035616,9]
[388049601,1758991862235,-2296.39,0.00035616,9]
[388049602,1758991862244,-480.0,0.00035616,9]
[388049603,1758991862254,-934.01,0.00035616,9]
[388049604,1758991862263,-480.0,0.00035616,9]
[388049605,1758991862273,-480.0,0.00035616,9]
[388049606,1758991862282,-502.9,0.00035616,9]
[388049607,1758991862293,-480.0,0.00035616,9]
[388049608,1758991862302,-480.0,0.00035616,9]
[388049609,1758991862311,-480.0,0.00035616,9]
[388049610,1758991862321,-1650.67,0.00035616,9]
[388049611,1758991862330,-480.0,0.00035616,9]
[388049612,1758991862339,-1162.04,0.00035616,9]
[388049613,1758991862349,-663.63,0.00035616,9]
[388049614,1758991862359,-591.23,0.00035616,9]
[388049615,1758991862368,-480.0,0.00035616,9]
[388049616,1758991862377,-983.49,0.00035616,9]
[388049617,1758991862386,-480.0,0.00035616,9]
[388049618,1758991862397,-480.0,0.00035616,9]
[388049619,1758991862406,-12492.49,0.00035616,9]
[388049620,1758991862417,-480.0,0.00035616,9]
[388049621,1758991862427,-1221.71,0.00035616,9]
[388049622,1758991862436,-480.0,0.00035616,9]
[388049623,1758991862446,-480.0,0.00035616,9]
[388049624,1758991862456,-1306.22,0.00035616,9]
[388049625,1758991862466,-744.45,0.00035616,9]
[388049626,1758991862475,-480.0,0.00035616,9]
[388049627,1758991862485,-6824.78,0.00035616,9]
[388049628,1758991862494,-594.27,0.00035616,9]
[388049629,1758991862503,-480.0,0.00035616,9]
[388049630,1758991862513,-480.0,0.00035616,9]
[388049631,1758991862523,-1258.21,0.00035616,9]
[388049632,1758991862533,-541.73,0.00035616,9]
[388049633,1758991862543,-3677.88,0.00035616,9]
[388049634,1758991862552,-575.52,0.00035616,9]
[388049635,1758991862562,-480.0,0.00035616,9]
[388049636,1758991862579,-480.0,0.00035616,9]
[388049637,1758991862590,-480.89814689,0.00035616,9]
[388049638,1758991862599,-395.00423328,0.00035616,9]
[388049639,1758991862610,-815.54,0.00035616,9]
[388049640,1758991862621,-3130.45,0.00035616,9]
[388049641,1758991862630,-480.0,0.00035616,9]
[388049642,1758991862640,-480.0,0.00035616,9]
[388049643,1758991862652,-2805.72,0.00035616,9]
[388049644,1758991862661,-1370.83,0.00035616,9]
[388049645,1758991862671,-480.0,0.00035616,9]
[388049646,1758991862681,-411.20762256,0.00035616,9]
[388049647,1758991862690,-9244.85,0.00035616,9]
[388049648,1758991862702,-480.0,0.00035616,9]
[388049649,1758991862714,-480.0,0.00035616,9]
[388049650,1758991862724,-616.64,0.00035616,9]
[388049651,1758991862733,-480.0,0.00035616,9]
[388049652,1758991862743,-480.0,0.00035616,9]
[388049653,1758991862751,-481.73964426,0.00035616,9]
[388049654,1758991862759,-480.0,0.00035616,9]
[388049655,1758991862767,-480.0,0.00035616,9]
[388049656,1758991862776,-480.0,0.00035616,9]
[388049657,1758991862785,-480.0,0.00035616,9]
[388049658,1758991862794,-3028.57,0.00035616,9]
[388049659,1758991862804,-480.0,0.00035616,9]
[388049660,1758991862813,-3906.94,0.00035616,9]
[388049661,1758991862823,-1448.64,0.00035616,9]
[388049662,1758991862839,-480.0,0.00035616,9]
[388049663,1758991862857,-1260.61,0.00035616,9]
[388049664,1758991862876,-480.0,0.00035616,9]
[388049665,1758991862898,-480.0,0.00035616,9]
[388049666,1758991862917,-480.0,0.00035616,9]
[388049667,1758991862926,-480.0,0.00035616,9]
[388049668,1758991862936,-1434.83,0.00035616,9]
[388049669,1758991862945,-480.0,0.00035616,7]
[388049670,1758991862955,-480.0,0.00035616,9]
[388049671,1758991862964,-667.35,0.00035616,9]
[388049672,1758991862974,-3953.6,0.00035616,9]
[388049673,1758991862984,-3485.09,0.00035616,9]
[388049674,1758991862993,-480.0,0.00035616,9]
[388049675,1758991863003,-480.0,0.00035616,9]
[388049676,1758991863013,-465.93204664,0.00035616,9]
[388049677,1758991863023,-480.0,0.00035616,9]
[388049678,1758991863034,-480.0,0.00035616,9]
[388049679,1758991863044,-4356.05,0.00035616,9]
[388049680,1758991863054,-755.93,0.00035616,9]
[388049681,1758991863064,-1252.39,0.00035616,9]
[388049682,1758991863073,-345.34545128,0.00035616,9]
[388049683,1758991863083,-620.47,0.00035616,9]
[388049684,1758991863092,-2327.61,0.00035616,9]
[388049685,1758991863102,-7577.26,0.00035616,3]
[388049686,1758991863111,-6949.56,0.00035616,9]
[388049687,1758991863122,-616.40268864,0.00035616,9]
[388049688,1758991863131,-3389.32,0.00035616,9]
[388049689,1758991863141,-601.7552415,0.00035616,9]
[388049690,1758991863150,-659.15,0.00035616,9]
[388049691,1758991863160,-480.0,0.00035616,9]
[388049692,1758991863170,-1184.96,0.00035616,9]
[388049693,1758991863180,-1458.07,0.00035616,9]
[388049694,1758991863190,-480.0,0.00035616,9]
[388049695,1758991863209,-480.0,0.00035616,9]
[388049696,1758991863219,-480.0,0.00035616,9]
[388049697,1758991863229,-480.0,0.00035616,9]
[388049698,1758991863238,-480.0,0.00035616,9]
[388049699,1758991863248,-523.6,0.00035616,9]
[388049700,1758991863264,-480.0,0.00035616,9]
[388049701,1758991863274,-2317.11,0.00035616,9]
[388049702,1758991863283,-4373.35,0.00035616,9]
[388049703,1758991863292,-480.0,0.00035616,9]
[388049704,1758991863301,-480.0,0.00035616,9]
[388049705,1758991863310,-480.0,0.00035616,9]
[388049706,1758991863320,-480.0,0.00035616,9]